bitfinex/quotes_SOLUSD_20250315
["timestamp","ask_amount","ask_price","bid_price","bid_amount"]
[1742000303892,20.71713458,134.15,134.14,0.063]
[1742000304594,39.36678344,134.15,134.14,0.063]
[1742000306994,20.71713458,134.15,134.14,0.063]
[1742000318616,7.4543,134.15,134.14,0.063]
[1742000318782,20.71713458,134.15,134.14,0.063]
[1742000321798,20.71623458,134.17,134.14,0.063]
[1742000322388,13.26283458,134.16,134.14,0.063]
[1742000322793,13.26283458,134.15,134.14,0.063]
[1742000323900,20.71713458,134.15,134.14,0.063]
[1742000324888,13.26283458,134.15,134.14,0.063]
[1742000325589,20.71713458,134.15,134.14,0.063]
[1742000333589,13.26283458,134.15,134.14,0.063]
[1742000334607,20.71713458,134.15,134.14,0.063]
[1742000347265,39.36678344,134.15,134.14,0.063]
[1742000352926,20.71713458,134.15,134.14,0.063]
[1742000358735,13.26283458,134.16,134.14,0.063]
[1742000358929,20.74653458,134.17,134.14,0.063]
[1742000361939,13.26283458,134.16,134.14,0.063]
[1742000362256,13.26283458,134.15,134.14,0.063]
[1742000363409,20.71713458,134.15,134.14,0.063]
[1742000364430,13.26283458,134.16,134.14,0.063]
[1742000366343,20.71653458,134.16,134.14,0.063]
[1742000366632,0.03,134.17,134.14,0.063]
[1742000374744,13.29283458,134.17,134.14,0.063]
[1742000374950,13.26283458,134.16,134.14,0.063]
[1742000375250,13.26283458,134.15,134.14,0.063]
[1742000375544,13.26283458,134.16,134.14,0.063]
[1742000376233,7.4543,134.15,134.14,0.063]
[1742000376440,20.71713458,134.15,134.14,0.063]
[1742000379148,13.26283458,134.16,134.14,0.063]
[1742000380148,20.71713458,134.15,134.14,0.063]
[1742000399861,7.4543,134.15,134.14,0.063]
[1742000400360,7.4539,134.16,134.14,0.063]
[1742000401140,20.71673458,134.16,134.14,0.063]
[1742000403253,7.4539,134.16,134.14,0.063]
[1742000403448,7.4835,134.17,134.14,0.063]
[1742000403653,0.03,134.17,134.14,0.063]
[1742000403854,0.03,134.17,134.14,7.5178]
[1742000404463,0.03,134.17,134.14,88.1873996]
[1742000406171,0.03,134.2,134.16,26.625172]
[1742000406362,0.03,134.2,134.19,20.0]
[1742000406541,0.03,134.2,134.19,127.3039716]
[1742000406745,0.03,134.22,134.21,6.1872]
[1742000406933,0.03,134.22,134.21,25.121172]
[1742000407135,0.03,134.22,134.21,105.7907716]
[1742000407445,0.03,134.22,134.21,88.3607996]
[1742000407964,0.03,134.22,134.21,107.2947716]
[1742000409148,0.03,134.24,134.22,18.933972]
[1742000409360,0.03,134.24,134.23,20.05088983]
[1742000410252,0.03,134.24,134.23,100.72048943]
[1742000411165,0.03,134.26,134.24,7.59146157]
[1742000411343,0.03,134.26,134.25,6.48]
[1742000411543,0.03,134.26,134.25,87.1495996]
[1742000412568,0.03,134.26,134.25,80.6695996]
[1742000414367,0.03,134.26,134.23,6.48]
[1742000414867,0.03,134.26,134.23,94.5992996]
[1742000415252,0.03,134.26,134.23,87.1495996]
[1742000417872,0.03,134.26,134.23,94.5992996]
[1742000418877,0.03,134.26,134.24,18.933972]
[1742000420375,0.03,134.26,134.24,99.6035716]
[1742000421179,0.03,134.26,134.24,6.48]
[1742000421355,0.03,134.26,134.22,80.6695996]
[1742000421559,0.03,134.26,134.22,88.1198996]
[1742000423781,0.03,134.26,134.22,88.1828996]
[1742000426179,13.26283458,134.25,134.22,80.7325996]
[1742000426388,13.26283458,134.25,134.22,87.2125996]
[1742000426589,13.26283458,134.25,134.22,80.7325996]
[1742000426964,0.03,134.26,134.22,80.7325996]
[1742000427168,0.03,134.26,134.22,88.1827996]
[1742000427781,0.03,134.26,134.23,18.933972]
[1742000429085,0.03,134.26,134.23,26.383472]
[1742000432388,0.03,134.26,134.22,80.7325996]
[1742000432686,13.29283458,134.26,134.22,80.7325996]
[1742000433786,20.74143458,134.26,134.22,80.7325996]
[1742000434292,13.26283458,134.25,134.22,0.063]
[1742000434803,20.74143458,134.26,134.22,0.063]
[1742000435293,13.26283458,134.25,134.22,0.063]
[1742000435896,20.74143458,134.26,134.22,0.063]
[1742000439770,0.03,134.26,134.22,0.063]
[1742000440788,20.74103458,134.26,134.22,0.063]
[1742000443602,13.26283458,134.25,134.22,0.063]
[1742000443809,13.26283458,134.24,134.22,0.063]
[1742000444820,20.71243458,134.24,134.22,0.063]
[1742000446999,13.26283458,134.23,134.22,0.063]
[1742000448396,33.70830658,134.23,134.22,0.0001]
[1742000448594,39.72220658,134.23,134.22,0.0001]
[1742000448812,20.0,134.2,134.14,0.063]
[1742000448997,13.26283458,134.18,134.14,0.063]
[1742000449302,7.4521,134.19,134.14,0.063]
[1742000449504,13.26283458,134.18,134.14,0.063]
[1742000450017,20.0,134.2,134.14,18.996972]
[1742000451124,20.0,134.2,134.15,7.4543]
[1742000452533,27.4515,134.2,134.15,7.4543]
[1742000452720,40.71433458,134.2,134.14,7.5176]
[1742000452923,13.26283458,134.18,134.14,0.063]
[1742000453428,20.71593458,134.18,134.14,0.063]
[1742000454311,28.1898219,134.18,134.14,0.063]
[1742000455124,20.7367219,134.17,134.14,0.063]
[1742000455430,20.7367219,134.16,134.14,0.063]
[1742000456000,20.7367219,134.17,134.14,0.063]
[1742000456408,26.0824,134.19,134.14,0.063]
[1742000456586,20.7367219,134.16,134.14,0.063]
[1742000457020,7.4537,134.16,134.14,0.063]
[1742000457400,28.1904219,134.16,134.14,0.063]
[1742000457917,20.7367219,134.15,134.14,0.063]
[1742000458118,28.1904219,134.16,134.14,0.063]
[1742000458303,28.1904219,134.16,134.15,0.063]
[1742000459113,28.1900219,134.17,134.15,0.063]
[1742000460026,20.7367219,134.18,134.15,0.063]
[1742000460324,37.41811043,134.22,134.15,0.063]
[1742000460325,28.1888219,134.19,134.15,0.063]
[1742000461491,20.7367219,134.2,134.16,6.48]
[1742000461896,20.7367219,134.18,134.16,6.48]
[1742000462908,20.7367219,134.17,134.15,80.7325996]
[1742000463208,20.7367219,134.16,134.15,0.063]
[1742000463399,45.010472,134.22,134.15,0.063]
[1742000463400,20.7367219,134.17,134.15,0.063]
[1742000464105,20.7367219,134.16,134.15,0.063]
[1742000465223,28.1904219,134.16,134.15,0.063]
[1742000470205,28.1904219,134.16,134.14,0.063]
[1742000470206,47.1243939,134.16,134.14,0.063]
[1742000470412,20.7367219,134.15,134.14,0.063]
[1742000471425,28.1910219,134.15,134.14,0.063]
[1742000471632,47.1249939,134.15,134.14,0.0001]
[1742000472622,20.471072,134.14,134.13,0.063]
[1742000472826,61.9445158,134.14,134.13,0.063]
[1742000473130,22.2738219,134.14,134.13,0.063]
[1742000473727,29.7286219,134.14,134.13,0.063]
[1742000474227,22.27864333,134.14,134.13,0.063]
[1742000475010,41.21261533,134.14,134.13,0.063]
[1742000475209,94.35958865,134.14,134.13,0.063]
[1742000475409,41.21261533,134.14,134.13,0.063]
[1742000481237,41.27561533,134.14,134.13,0.063]
[1742000481846,41.27561533,134.14,134.06,0.063]
[1742000481847,38.933972,134.07,134.05,0.063]
[1742000482151,20.0,134.0,133.99,0.03]
[1742000482383,33.28674333,134.0,133.99,0.03]
[1742000484351,40.79634536,134.0,133.99,0.03]
[1742000493556,20.79634536,134.01,133.99,0.03]
[1742000494837,20.79634536,134.02,133.99,0.03]
[1742000495234,20.79634536,134.01,133.99,0.03]
[1742000496358,20.79634536,134.0,133.99,0.03]
[1742000498360,20.79634536,134.01,133.99,0.03]
[1742000500257,20.79634536,134.0,133.99,0.03]
[1742000500456,20.0,133.97,133.92,10.0]
[1742000500660,20.79634536,133.95,133.92,10.0]
[1742000501251,20.79634536,133.97,133.93,6.64]
[1742000502261,20.79634536,133.97,133.93,14.1063]
[1742000502665,20.79634536,133.98,133.93,14.1063]
[1742000503054,20.79634536,133.99,133.93,113.42554846]
[1742000503249,20.79634536,133.99,133.94,25.039272]
[1742000504360,20.79634536,133.99,133.95,7.4654]
[1742000504554,20.79634536,133.99,133.95,88.1349996]
[1742000507470,20.79634536,133.98,133.95,80.6695996]
[1742000508059,20.79634536,133.99,133.95,80.6695996]
[1742000508266,1.6361,134.03,133.96,1.5944]
[1742000508267,13.30564891,134.01,133.96,1.5944]
[1742000508465,13.30564891,134.0,133.96,1.5944]
[1742000508851,13.30564891,133.99,133.96,1.5944]
[1742000509056,13.30564891,133.98,133.95,80.6695996]
[1742000509576,13.30564891,133.98,133.95,88.1348996]
[1742000509945,13.30564891,133.99,133.95,88.1348996]
[1742000510453,20.76884891,133.99,133.95,88.1348996]
[1742000510645,13.30564891,133.98,133.95,88.1348996]
[1742000511050,13.30564891,133.98,133.95,80.6695996]
[1742000511251,13.30564891,133.98,133.95,88.1349996]
[1742000512365,13.30564891,133.98,133.95,80.6695996]
[1742000512776,13.30564891,133.98,133.95,88.1347996]
[1742000512949,13.30564891,133.98,133.92,10.0]
[1742000512950,13.30564891,133.96,133.92,10.0]
[1742000513773,13.30564891,133.95,133.92,10.0]
[1742000518055,20.77054891,133.96,133.93,6.64]
[1742000520081,0.063,133.99,133.93,6.64]
[1742000520383,0.063,133.99,133.93,87.3095996]
[1742000520675,13.30564891,133.98,133.93,87.3095996]
[1742000520875,13.30564891,133.98,133.93,94.7760996]
[1742000521250,13.36864891,133.99,133.94,0.28432314]
[1742000521456,0.063,133.99,133.95,18.64964886]
[1742000521781,0.063,133.99,133.96,7.4649]
[1742000522083,0.063,133.99,133.96,88.1344996]
[1742000523461,13.30564891,133.98,133.96,80.6695996]
[1742000525172,13.36864891,133.99,133.96,80.6695996]
[1742000525368,0.063,133.99,133.96,88.1344996]
[1742000528377,13.30564891,133.97,133.92,90.6695996]
[1742000528580,13.30564891,133.95,133.92,90.6695996]
[1742000529685,13.30564891,133.95,133.93,0.03]
[1742000530384,20.80709321,133.96,133.93,0.03]
[1742000531263,40.80709321,133.94,133.93,0.03]
[1742000531691,22.41259321,133.95,133.93,0.03]
[1742000531867,20.80709321,133.94,133.93,0.03]
[1742000533583,28.27309321,133.94,133.93,0.03]
[1742000534586,20.80709321,133.95,133.93,0.03]
[1742000534785,28.27249321,133.95,133.93,0.03]
[1742000535985,20.80709321,133.94,133.93,0.03]
[1742000536485,6.4146,133.93,133.92,10.0]
[1742000536687,34.68819321,133.93,133.92,10.0]
[1742000536884,34.68819321,133.93,133.91,10.959]
[1742000537192,62.10195842,133.92,133.91,0.0001]
[1742000538181,69.56905842,133.92,133.91,0.0001]
[1742000538666,20.80709321,133.86,133.85,0.03]
[1742000540296,28.27749321,133.86,133.85,0.03]
[1742000540670,20.80709321,133.86,133.85,0.03]
[1742000540871,7.4692,133.89,133.85,0.03]
[1742000541076,20.80709321,133.86,133.85,0.03]
[1742000543179,28.27749321,133.86,133.85,0.03]
[1742000543694,55.17986521,133.86,133.85,0.03]
[1742000543888,20.80709321,133.8,133.79,0.03]
[1742000545302,20.0,133.83,133.79,0.03]
[1742000545597,20.80709321,133.81,133.79,0.03]
[1742000546174,20.80709321,133.82,133.79,0.03]
[1742000547095,20.80709321,133.81,133.79,0.03]
[1742000547497,20.80709321,133.8,133.79,0.03]
[1742000548394,20.80709321,133.81,133.79,0.03]
[1742000549578,20.80709321,133.82,133.79,0.03]
[1742000550099,20.80709321,133.83,133.79,0.03]
[1742000551101,20.80709321,133.83,133.79,7.5044]
[1742000551285,20.80709321,133.84,133.79,7.5044]
[1742000551480,20.80709321,133.8,133.79,0.03]
[1742000553197,28.28089321,133.8,133.79,0.03]
[1742000553577,20.80709321,133.8,133.79,0.03]
[1742000555006,28.28089321,133.8,133.79,0.03]
[1742000558116,18.6809,133.83,133.79,0.03]
[1742000558311,20.80709321,133.81,133.79,0.03]
[1742000558490,28.27979321,133.82,133.79,0.03]
[1742000558687,28.27939321,133.83,133.79,0.03]
[1742000558991,7.9684,133.86,133.79,0.03]
[1742000559200,20.80709321,133.85,133.79,0.03]
[1742000559915,20.80709321,133.84,133.79,0.03]
[1742000560213,28.27809321,133.85,133.79,0.03]
[1742000560916,20.80709321,133.84,133.79,0.03]
[1742000561090,28.27809321,133.85,133.8,6.68]
[1742000561610,7.471,133.85,133.8,6.68]
[1742000562319,7.471,133.85,133.8,14.1535]
[1742000562490,20.80709321,133.88,133.81,0.28432314]
[1742000562696,20.80709321,133.88,133.81,18.933972]
[1742000562897,20.80709321,133.87,133.8,94.8230996]
[1742000563205,20.80709321,133.86,133.8,94.8230996]
[1742000563593,0.063,133.85,133.8,94.8230996]
[1742000565118,20.80709321,133.83,133.8,6.68]
[1742000565304,20.80709321,133.84,133.8,6.68]
[1742000565915,0.063,133.85,133.8,14.1535]
[1742000568514,20.87009321,133.85,133.8,14.1535]
[1742000568713,28.34119321,133.85,133.8,14.1535]
[1742000569118,20.80709321,133.84,133.8,14.1535]
[1742000569315,7.5341,133.85,133.8,14.1535]
[1742000569622,0.063,133.85,133.8,14.1535]
[1742000570399,0.063,133.85,133.8,32.8381]
[1742000571108,20.80709321,133.84,133.79,0.03]
[1742000571349,20.80709321,133.82,133.79,0.03]
[1742000571936,20.80709321,133.83,133.79,0.03]
[1742000573845,20.87009321,133.85,133.8,26.66]
[1742000575049,28.34119321,133.85,133.8,26.66]
[1742000575423,20.80709321,133.84,133.8,26.66]
[1742000576051,28.34119321,133.85,133.8,26.66]
[1742000577337,20.80709321,133.81,133.79,0.03]
[1742000577508,20.80709321,133.8,133.79,0.03]
[1742000579328,20.80709321,133.81,133.79,0.03]
[1742000579634,7.4738,133.8,133.79,0.03]
[1742000580309,28.28089321,133.8,133.79,0.03]
[1742000580712,28.28049321,133.81,133.79,0.03]
[1742000580914,20.80709321,133.8,133.79,0.03]
[1742000581817,28.28089321,133.8,133.79,0.03]
[1742000586837,7.4732,133.82,133.79,0.03]
[1742000587134,20.80709321,133.8,133.79,0.03]
[1742000591453,20.80709321,133.83,133.79,0.03]
[1742000591746,20.80709321,133.83,133.79,6.69]
[1742000592351,20.80709321,133.84,133.79,6.69]
[1742000592635,20.80709321,133.84,133.8,7.4738]
[1742000593215,28.27869321,133.84,133.8,7.4738]
[1742000593429,28.27869321,133.84,133.79,14.1641]
[1742000593829,20.80709321,133.82,133.79,6.69]
[1742000594643,28.27869321,133.84,133.79,6.69]
[1742000594825,28.27869321,133.84,133.79,14.1643]
[1742000595020,20.87009321,133.85,133.79,14.1643]
[1742000595328,0.063,133.85,133.8,18.933972]
[1742000596420,0.063,133.85,133.8,99.6035716]
[1742000597041,0.063,133.85,133.81,7.4732]
[1742000597244,0.063,133.85,133.82,25.526972]
[1742000597444,0.063,133.85,133.82,106.1965716]
[1742000598944,0.063,133.85,133.83,7.4721]
[1742000599141,0.063,133.85,133.84,6.66]
[1742000600921,18.933972,133.84,133.78,0.03]
[1742000601143,20.80709321,133.8,133.78,0.03]
[1742000602459,28.28089321,133.8,133.78,0.03]
[1742000602931,20.80709321,133.8,133.78,0.03]
[1742000603629,28.28049321,133.81,133.78,0.03]
[1742000604549,20.80709321,133.8,133.78,0.03]
[1742000607050,28.28089321,133.8,133.78,0.03]
[1742000613434,20.80709321,133.8,133.78,0.03]
[1742000614148,28.28089321,133.8,133.78,0.03]
[1742000614950,20.80709321,133.81,133.78,0.03]
[1742000615461,20.80709321,133.8,133.78,0.03]
[1742000622159,20.80709321,133.82,133.78,0.03]
[1742000622545,7.4725,133.83,133.78,0.03]
[1742000622546,20.80709321,133.81,133.78,0.03]
[1742000622941,7.4725,133.83,133.78,0.03]
[1742000623151,20.80709321,133.82,133.78,0.03]
[1742000623363,20.80709321,133.81,133.78,0.03]
[1742000623671,28.28039321,133.81,133.78,0.03]
[1742000623969,7.4721,133.83,133.78,0.03]
[1742000624162,20.80709321,133.82,133.78,0.03]
[1742000625866,28.27989321,133.82,133.78,0.03]
[1742000628268,13.34404192,133.82,133.78,0.03]
[1742000628867,13.40704192,133.85,133.79,87.3195996]
[1742000630471,13.40704192,133.85,133.8,7.4738]
[1742000640477,20.87814192,133.85,133.8,7.4738]
[1742000641878,13.48620349,133.81,133.79,0.03]
[1742000642180,18.64964886,133.82,133.79,0.03]
[1742000642487,13.34404192,133.8,133.79,0.03]
[1742000643174,20.81784192,133.8,133.79,0.03]
[1742000646268,39.75181392,133.8,133.79,0.0001]
[1742000646468,39.75181392,133.8,133.78,0.0001]
[1742000646780,13.48620349,133.79,133.78,0.0001]
[1742000648680,20.96060349,133.79,133.78,0.0001]
[1742000654303,20.96060349,133.79,133.71,0.03]
[1742000654304,18.933972,133.75,133.71,0.03]
[1742000654488,13.34404192,133.72,133.71,0.03]
[1742000655505,20.82234192,133.72,133.71,0.03]
[1742000657079,13.34404192,133.72,133.71,0.03]
[1742000657286,13.34404192,133.73,133.71,0.03]
[1742000657806,13.34404192,133.74,133.71,0.03]
[1742000658782,13.34404192,133.73,133.71,0.03]
[1742000660587,13.34404192,133.72,133.71,0.03]
[1742000662207,20.82184192,133.73,133.71,0.03]
[1742000662982,13.34404192,133.73,133.71,0.03]
[1742000664086,13.34404192,133.72,133.71,0.03]
[1742000669499,20.82234192,133.72,133.71,0.03]
[1742000674217,39.75631392,133.72,133.71,0.03]
[1742000676221,20.96450349,133.72,133.71,0.03]
[1742000676600,0.14216157,133.71,133.66,0.03]
[1742000676804,13.34404192,133.67,133.66,0.03]
[1742000677691,20.82514192,133.67,133.66,0.03]
[1742000679221,21.10946506,133.67,133.66,0.03]
[1742000679515,13.34404192,133.67,133.66,0.03]
[1742000679727,20.82514192,133.67,133.65,0.03]
[1742000680023,13.62836506,133.66,133.65,0.03]
[1742000680317,32.27801392,133.66,133.65,0.03]
[1742000681921,39.75961392,133.66,133.65,0.03]
[1742000682219,21.10996506,133.66,133.65,0.03]
[1742000682914,39.75961392,133.66,133.65,0.03]
[1742000685097,21.10996506,133.66,133.65,0.03]
[1742000686333,39.75961392,133.66,133.65,0.03]
[1742000687127,21.10996506,133.66,133.65,0.03]
[1742000691329,21.10996506,133.66,133.57,35.4995004]
[1742000691330,20.471672,133.62,133.57,2.5963004]
[1742000691624,13.34404192,133.58,133.57,2.5963004]
[1742000693411,13.34404192,133.59,133.57,2.5963004]
[1742000696002,13.34404192,133.58,133.57,2.5963004]
[1742000696933,13.34404192,133.58,133.57,2.0963004]
[1742000697118,13.34404192,133.59,133.57,2.0963004]
[1742000699225,13.34404192,133.58,133.57,2.0963004]
[1742000700808,13.34404192,133.58,133.57,1.5963004]
[1742000702434,7.4852,133.6,133.57,1.5963004]
[1742000702724,1.5455,133.65,133.58,6.66]
[1742000702934,13.34404192,133.63,133.58,6.66]
[1742000703318,13.34404192,133.62,133.58,6.66]
[1742000704233,13.34404192,133.62,133.58,14.1461]
[1742000704732,20.82754192,133.63,133.58,14.1461]
[1742000704920,20.82754192,133.63,133.58,7.4861]
[1742000705118,13.34404192,133.63,133.59,6.66]
[1742000705728,13.34404192,133.64,133.59,6.66]
[1742000705932,0.063,133.66,133.6,18.64964886]
[1742000706141,0.063,133.66,133.61,7.4844]
[1742000706321,0.063,133.66,133.63,1.87562314]
[1742000706519,0.063,133.66,133.65,0.28432314]
[1742000707113,0.063,133.66,133.65,99.6035716]
[1742000708236,0.063,133.66,133.65,107.0857716]
[1742000709937,0.063,133.66,133.64,25.32964886]
[1742000710321,0.063,133.66,133.64,6.68]
[1742000710843,0.063,133.66,133.64,14.1627]
[1742000711338,0.063,133.66,133.65,18.933972]
[1742000711848,0.063,133.66,133.65,26.416172]
[1742000714813,0.063,133.66,133.65,107.0857716]
[1742000716952,0.0001,133.66,133.65,107.0857716]
[1742000717116,0.0001,133.66,133.65,107.5857716]
[1742000717444,1.5455,133.76,133.7,20.0]
[1742000717648,1.5455,133.76,133.71,6.7]
[1742000718019,20.88184669,133.77,133.71,6.7]
[1742000718426,28.35734669,133.77,133.71,6.7]
[1742000718931,0.063,133.78,133.72,7.4783]
[1742000719445,20.94484669,133.78,133.72,7.4783]
[1742000719948,20.94484669,133.78,133.73,6.68]
[1742000720133,28.41994669,133.78,133.73,6.68]
[1742000721327,20.88184669,133.77,133.73,6.68]
[1742000722144,7.476,133.76,133.73,6.68]
[1742000722568,28.35744669,133.77,133.73,6.68]
[1742000723224,7.4756,133.77,133.73,6.68]
[1742000723426,7.5381,133.78,133.73,14.1577]
[1742000723751,28.41994669,133.78,133.73,6.68]
[1742000724323,28.41994669,133.78,133.73,14.1577]
[1742000724526,28.41994669,133.78,133.73,6.68]
[1742000727045,28.41994669,133.78,133.73,14.1576]
[1742000727237,7.5381,133.78,133.73,14.1576]
[1742000728439,0.063,133.78,133.73,14.1576]
[1742000731155,20.94484669,133.78,133.73,14.1576]
[1742000731355,20.88184669,133.76,133.73,6.68]
[1742000733148,28.35794669,133.76,133.73,6.68]
[1742000736234,20.8324881,133.76,133.73,6.68]
[1742000736649,20.8324881,133.76,133.71,7.4788]
[1742000736952,20.8324881,133.76,133.72,6.62]
[1742000737461,13.3563881,133.76,133.72,14.0982]
[1742000737831,13.3563881,133.76,133.69,99.6035716]
[1742000737832,20.14216157,133.7,133.65,0.03]
[1742000738056,13.3563881,133.66,133.65,0.03]
[1742000738242,13.3563881,133.67,133.65,0.03]
[1742000739557,0.14216157,133.72,133.66,0.03]
[1742000739558,13.3563881,133.69,133.66,0.03]
[1742000739764,20.8358881,133.7,133.66,0.03]
[1742000739949,20.8358881,133.7,133.66,6.77]
[1742000740266,28.36781311,133.7,133.66,6.77]
[1742000740642,28.36871311,133.69,133.66,6.77]
[1742000743763,20.88831311,133.7,133.66,6.77]
[1742000743953,20.88831311,133.71,133.66,6.77]
[1742000744151,28.36731311,133.71,133.66,14.2515]
[1742000745862,41.17263625,133.67,133.66,0.03]
[1742000746158,20.88831311,133.67,133.66,0.03]
[1742000747863,28.36941311,133.67,133.66,0.03]
[1742000749463,28.36941311,133.67,133.65,0.03]
[1742000749766,21.17263625,133.66,133.65,0.0001]
[1742000751566,28.65423625,133.66,133.65,0.0001]
[1742000751862,47.30388511,133.66,133.65,0.0001]
[1742000752453,28.65423625,133.66,133.65,0.0001]
[1742000757874,47.30388511,133.66,133.65,0.0001]
[1742000762269,28.51207468,133.66,133.65,0.0001]
[1742000762463,28.65423625,133.66,133.65,0.0001]
[1742000764475,28.51207468,133.66,133.65,0.0001]
[1742000765165,28.65423625,133.66,133.65,0.0001]
[1742000772287,21.14864086,133.66,133.65,0.0001]
[1742000774568,13.38271772,133.59,133.58,5.1825318]
[1742000775191,20.0,133.63,133.58,5.1825318]
[1742000775377,13.38271772,133.6,133.58,5.1825318]
[1742000775765,53.53087088,133.63,133.58,5.1825318]
[1742000775766,13.38271772,133.59,133.58,5.1825318]
[1742000776790,20.86821772,133.59,133.58,5.1825318]
[1742000782092,39.80218972,133.59,133.58,5.1825318]
[1742000782704,39.80218972,133.59,133.58,3.18e-05]
[1742000783178,21.15254086,133.59,133.58,3.18e-05]
[1742000792409,21.10447986,133.59,133.58,3.18e-05]
[1742000793707,39.75412872,133.59,133.58,3.18e-05]
[1742000795384,20.86821772,133.59,133.58,3.18e-05]
[1742000796710,21.15254086,133.59,133.58,3.18e-05]
[1742000798114,21.15254086,133.59,133.58,0.0300318]
[1742000798418,39.80218972,133.59,133.58,0.0300318]
[1742000798984,39.80218972,133.59,133.58,3.18e-05]
[1742000799605,18.64964886,133.58,133.57,3.22e-05]
[1742000799916,32.03236658,133.58,133.57,3.22e-05]
[1742000800411,0.28432314,133.57,133.56,3.22e-05]
[1742000800590,13.66704086,133.57,133.56,3.22e-05]
[1742000801812,39.80338972,133.57,133.56,3.22e-05]
[1742000802917,1.6551,133.61,133.56,3.22e-05]
[1742000802918,20.86881772,133.58,133.56,3.22e-05]
[1742000803727,13.38271772,133.59,133.56,3.22e-05]
[1742000803896,20.86831772,133.59,133.56,3.22e-05]
[1742000804223,13.38271772,133.58,133.56,3.22e-05]
[1742000808423,20.86891772,133.58,133.56,3.22e-05]
[1742000809000,13.38271772,133.58,133.56,3.22e-05]
[1742000811224,20.86881772,133.58,133.56,3.22e-05]
[1742000819036,13.38271772,133.57,133.56,3.22e-05]
[1742000820511,20.86941772,133.57,133.56,3.22e-05]
[1742000821229,21.01157929,133.57,133.56,3.22e-05]
[1742000821442,21.15374086,133.57,133.56,3.22e-05]
[1742000822524,39.80338972,133.57,133.56,3.22e-05]
[1742000825627,93.3342606,133.57,133.56,3.22e-05]
[1742000827436,13.38271772,133.53,133.52,0.03]
[1742000828821,20.87161772,133.53,133.52,0.03]
[1742000829840,0.14216157,133.49,133.41,1.5441]
[1742000830035,13.38271772,133.46,133.41,1.5441]
[1742000830340,0.28432314,133.49,133.41,1.5441]
[1742000830341,13.38271772,133.47,133.41,1.5441]
[1742000830918,13.38271772,133.47,133.41,9.0396]
[1742000831217,13.38271772,133.48,133.42,18.64964886]
[1742000832139,13.38271772,133.49,133.42,18.64964886]
[1742000832629,13.38271772,133.49,133.41,9.0396]
[1742000832826,13.38271772,133.49,133.42,18.79181043]
[1742000833019,33.38271772,133.51,133.44,18.64964886]
[1742000833223,33.38271772,133.51,133.45,7.787]
[1742000833528,20.81269739,133.55,133.46,18.933972]
[1742000833529,16.71189289,133.55,133.46,18.933972]
[1742000833721,16.71189289,133.55,133.5,24.89254886]
[1742000833923,5.56619335,133.54,133.51,6.7]
[1742000835231,13.38271772,133.55,133.51,6.7]
[1742000836022,13.38271772,133.54,133.51,6.7]
[1742000837346,13.38271772,133.55,133.51,6.7]
[1742000837546,0.063,133.57,133.51,6.7]
[1742000837547,5.56654445,133.53,133.51,6.7]
[1742000838546,20.93354899,133.55,133.51,6.7]
[1742000839339,5.59074689,133.54,133.51,6.7]
[1742000840439,5.59074689,133.53,133.51,6.7]
[1742000841540,13.07984689,133.53,133.51,6.7]
[1742000841728,20.93354899,133.54,133.51,6.7]
[1742000841929,28.42184899,133.55,133.51,6.7]
[1742000842851,28.42184899,133.55,133.51,14.19]
[1742000843043,5.59070115,133.54,133.51,14.19]
[1742000843347,5.59070115,133.54,133.51,6.7]
[1742000844051,5.59070115,133.54,133.51,14.19]
[1742000844344,5.59070115,133.53,133.51,14.19]
[1742000844743,5.59070115,133.53,133.51,6.7]
[1742000845445,7.4878,133.55,133.51,6.7]
[1742000845446,5.59070115,133.52,133.51,6.7]
[1742000847043,5.59070115,133.52,133.48,6.68]